{"text_format":"3","workbook":"xlsx","n_sheets":1,"sheets":["ميزانية العائلة الشهرية"],"read":"whole","date_system":"1900"}

{"sheet":"ميزانية العائلة الشهرية","index":0,"n_rows":67,"n_cols":10,"rows_kept":67}
[null,"ميزانية العائلة الشهرية"]
[null,"جدول الملخص","الإجمالي\nالتكلفة المتوقعة","الإجمالي\nالتكلفة الفعلية","الإجمالي\nالفرق",null,"مصدر الدخل الشهري المتوقع","المبلغ"]
[null,null,{"$f":"السكن[[#Totals],[المتوقعة\nالتكلفة]]+وسائل_النقل[[#Totals],[المتوقعة\nالتكلفة]]+التأمين[[#Totals],[المتوقعة\nالتكلفة]]+الطعام[[#Totals],[المتوقعة\nالتكلفة]]+الأطفال[[#Totals],[المتوقعة\nالتكلفة]]+المتطلبات_القانونية[[#Totals],[المتوقعة\nالتكلفة]]+المدخرات[[#Totals],[المتوقعة\nالتكلفة]]+القروض[[#Totals],[المتوقعة\nالتكلفة]]+الترفيه[[#Totals],[المتوقعة\nالتكلفة]]+الضرائب[[#Totals],[المتوقعة \nالتكلفة]]+الرعاية_الشخصية[[#Totals],[المتوقعة\nالتكلفة]]+الحيوانات_الأليفة[[#Totals],[المتوقعة\nالتكلفة]]+الهدايا[[#Totals],[المتوقعة\nالتكلفة]]","v":{"v":1203,"d":"ر.س.‏ 1,203"}},{"$f":"السكن[[#Totals],[الفعلية\nالتكلفة]]+وسائل_النقل[[#Totals],[الفعلية\nالتكلفة]]+التأمين[[#Totals],[الفعلية\nالتكلفة]]+الطعام[[#Totals],[الفعلية\nالتكلفة]]+الأطفال[[#Totals],[الفعلية\nالتكلفة]]+المتطلبات_القانونية[[#Totals],[الفعلية\nالتكلفة]]+المدخرات[[#Totals],[الفعلية\nالتكلفة]]+القروض[[#Totals],[الفعلية\nالتكلفة]]+الترفيه[[#Totals],[الفعلية\nالتكلفة]]+الضرائب[[#Totals],[الفعلية \nالتكلفة]]+الرعاية_الشخصية[[#Totals],[الفعلية\nالتكلفة]]+الحيوانات_الأليفة[[#Totals],[الفعلية\nالتكلفة]]+الهدايا[[#Totals],[الفعلية\nالتكلفة]]","v":{"v":1317,"d":"ر.س.‏ 1,317"}},{"$f":"السكن[[#Totals],[الفرق]]+وسائل_النقل[[#Totals],[الفرق]]+التأمين[[#Totals],[الفرق]]+الطعام[[#Totals],[الفرق]]+الأطفال[[#Totals],[الفرق]]+المتطلبات_القانونية[[#Totals],[الفرق]]+المدخرات[[#Totals],[الفرق]]+القروض[[#Totals],[الفرق]]+الترفيه[[#Totals],[الفرق]]+الضرائب[[#Totals],[الفرق]]+الرعاية_الشخصية[[#Totals],[الفرق]]+الحيوانات_الأليفة[[#Totals],[الفرق]]+الهدايا[[#Totals],[الفرق]]","v":{"v":-114,"d":"ر.س.‏ 114-"}},null,"الدخل 1",{"v":4000,"d":"ر.س.‏ 4,000"}]
[{"$nulls":6},"الدخل 2",{"v":1200,"d":"ر.س.‏ 1,200"}]
[null,"السكن","المتوقعة\nالتكلفة","الفعلية\nالتكلفة","الفرق",null,"الدخل الإضافي",{"v":300,"d":"ر.س.‏ 300"}]
[null,"قسط الرهن أو الإيجار",{"v":1000,"d":"ر.س.‏ 1,000"},{"v":1000,"d":"ر.س.‏ 1,000"},{"$f":"السكن[المتوقعة\nالتكلفة]-السكن[الفعلية\nالتكلفة]","v":{"v":0,"d":"ر.س.‏ 0"}},null,"إجمالي الدخل الشهري",{"$f":"SUM(H3:H5)","v":{"v":5500,"d":"ر.س.‏ 5,500"}}]
[null,"القسط الثاني للرهن أو الإيجار",{"v":0,"d":"ر.س.‏ 0"},{"v":0,"d":"ر.س.‏ 0"},{"$f":"السكن[المتوقعة\nالتكلفة]-السكن[الفعلية\nالتكلفة]","v":{"v":0,"d":"ر.س.‏ 0"}}]
[null,"الهاتف",{"v":62,"d":"ر.س.‏ 62"},{"v":100,"d":"ر.س.‏ 100"},{"$f":"السكن[المتوقعة\nالتكلفة]-السكن[الفعلية\nالتكلفة]","v":{"v":-38,"d":"ر.س.‏ 38-"}},null,"مصدر الدخل الشهري الفعلي","المبلغ"]
[null,"الكهرباء",{"v":44,"d":"ر.س.‏ 44"},{"v":125,"d":"ر.س.‏ 125"},{"$f":"السكن[المتوقعة\nالتكلفة]-السكن[الفعلية\nالتكلفة]","v":{"v":-81,"d":"ر.س.‏ 81-"}},null,"الدخل 1",{"v":4000,"d":"ر.س.‏ 4,000"}]
[null,"وقود",{"v":22,"d":"ر.س.‏ 22"},{"v":35,"d":"ر.س.‏ 35"},{"$f":"السكن[المتوقعة\nالتكلفة]-السكن[الفعلية\nالتكلفة]","v":{"v":-13,"d":"ر.س.‏ 13-"}},null,"الدخل 2",{"v":1200,"d":"ر.س.‏ 1,200"}]
[null,"المياه والصرف",{"v":8,"d":"ر.س.‏ 8"},{"v":8,"d":"ر.س.‏ 8"},{"$f":"السكن[المتوقعة\nالتكلفة]-السكن[الفعلية\nالتكلفة]","v":{"v":0,"d":"ر.س.‏ 0"}},null,"الدخل الإضافي",{"v":300,"d":"ر.س.‏ 300"}]
[null,"القنوات الفضائية",{"v":34,"d":"ر.س.‏ 34"},{"v":39,"d":"ر.س.‏ 39"},{"$f":"السكن[المتوقعة\nالتكلفة]-السكن[الفعلية\nالتكلفة]","v":{"v":-5,"d":"ر.س.‏ 5-"}},null,"إجمالي الدخل الشهري",{"$f":"SUM(H9:H11)","v":{"v":5500,"d":"ر.س.‏ 5,500"}}]
[null,"إزالة المهملات",{"v":10,"d":"ر.س.‏ 10"},{"v":10,"d":"ر.س.‏ 10"},{"$f":"السكن[المتوقعة\nالتكلفة]-السكن[الفعلية\nالتكلفة]","v":{"v":0,"d":"ر.س.‏ 0"}}]
[null,"الصيانة أو الإصلاحات",{"v":23,"d":"ر.س.‏ 23"},{"v":0,"d":"ر.س.‏ 0"},{"$f":"السكن[المتوقعة\nالتكلفة]-السكن[الفعلية\nالتكلفة]","v":{"v":23,"d":"ر.س.‏ 23"}},null,"الميزانية","المبلغ"]
[null,"المستلزمات",{"v":0,"d":"ر.س.‏ 0"},{"v":0,"d":"ر.س.‏ 0"},{"$f":"السكن[المتوقعة\nالتكلفة]-السكن[الفعلية\nالتكلفة]","v":{"v":0,"d":"ر.س.‏ 0"}},null,"الميزانية المتوقعة",{"$f":"SUM(H6-'ميزانية العائلة الشهرية'!$C$3:$C$3)","v":{"v":4297,"d":"ر.س.‏ 4,297"}}]
[null,"غير ذلك",{"v":0,"d":"ر.س.‏ 0"},{"v":0,"d":"ر.س.‏ 0"},{"$f":"السكن[المتوقعة\nالتكلفة]-السكن[الفعلية\nالتكلفة]","v":{"v":0,"d":"ر.س.‏ 0"}},null,"الرصيد الفعلي",{"$f":"SUM(H12-D3)","v":{"v":4183,"d":"ر.س.‏ 4,183"}}]
[null,"الإجمالي",{"$f":"SUBTOTAL(109,السكن[المتوقعة\nالتكلفة])","v":{"v":1203,"d":"ر.س.‏ 1,203"}},{"$f":"SUBTOTAL(109,السكن[الفعلية\nالتكلفة])","v":{"v":1317,"d":"ر.س.‏ 1,317"}},{"$f":"SUBTOTAL(109,السكن[الفرق])","v":{"v":-114,"d":"ر.س.‏ 114-"}},null,"الفرق",{"$f":"SUM(H16-H15)","v":{"v":-114,"d":"ر.س.‏ 114-"}}]
[]
[null,"وسائل النقل","المتوقعة\nالتكلفة","الفعلية\nالتكلفة","الفرق",null,"القروض","المتوقعة\nالتكلفة","الفعلية\nالتكلفة","الفرق"]
[null,"مدفوعات السيارة 1",null,null,{"$f":"وسائل_النقل[المتوقعة\nالتكلفة]-وسائل_النقل[الفعلية\nالتكلفة]","v":{"v":0,"d":"ر.س.‏ 0"}},null,"شخصية",null,null,{"$f":"القروض[المتوقعة\nالتكلفة]-القروض[الفعلية\nالتكلفة]","v":{"v":0,"d":"ر.س.‏ 0"}}]
[null,"مدفوعات السيارة 2",null,null,{"$f":"وسائل_النقل[المتوقعة\nالتكلفة]-وسائل_النقل[الفعلية\nالتكلفة]","v":{"v":0,"d":"ر.س.‏ 0"}},null,"طالب",null,null,{"$f":"القروض[المتوقعة\nالتكلفة]-القروض[الفعلية\nالتكلفة]","v":{"v":0,"d":"ر.س.‏ 0"}}]
[null,"أجرة الحافلة/التاكسي",null,null,{"$f":"وسائل_النقل[المتوقعة\nالتكلفة]-وسائل_النقل[الفعلية\nالتكلفة]","v":{"v":0,"d":"ر.س.‏ 0"}},null,"بطاقة الائتمان",null,null,{"$f":"القروض[المتوقعة\nالتكلفة]-القروض[الفعلية\nالتكلفة]","v":{"v":0,"d":"ر.س.‏ 0"}}]
[null,"التأمين",null,null,{"$f":"وسائل_النقل[المتوقعة\nالتكلفة]-وسائل_النقل[الفعلية\nالتكلفة]","v":{"v":0,"d":"ر.س.‏ 0"}},null,"بطاقة الائتمان",null,null,{"$f":"القروض[المتوقعة\nالتكلفة]-القروض[الفعلية\nالتكلفة]","v":{"v":0,"d":"ر.س.‏ 0"}}]
[null,"الترخيص",null,null,{"$f":"وسائل_النقل[المتوقعة\nالتكلفة]-وسائل_النقل[الفعلية\nالتكلفة]","v":{"v":0,"d":"ر.س.‏ 0"}},null,"بطاقة الائتمان",null,null,{"$f":"القروض[المتوقعة\nالتكلفة]-القروض[الفعلية\nالتكلفة]","v":{"v":0,"d":"ر.س.‏ 0"}}]
[null,"الوقود",null,null,{"$f":"وسائل_النقل[المتوقعة\nالتكلفة]-وسائل_النقل[الفعلية\nالتكلفة]","v":{"v":0,"d":"ر.س.‏ 0"}},null,"غير ذلك",null,null,{"$f":"القروض[المتوقعة\nالتكلفة]-القروض[الفعلية\nالتكلفة]","v":{"v":0,"d":"ر.س.‏ 0"}}]
[null,"الصيانة",null,null,{"$f":"وسائل_النقل[المتوقعة\nالتكلفة]-وسائل_النقل[الفعلية\nالتكلفة]","v":{"v":0,"d":"ر.س.‏ 0"}},null,"الإجمالي",{"$f":"SUBTOTAL(109,القروض[المتوقعة\nالتكلفة])","v":{"v":0,"d":"ر.س.‏ 0"}},{"$f":"SUBTOTAL(109,القروض[الفعلية\nالتكلفة])","v":{"v":0,"d":"ر.س.‏ 0"}},{"$f":"SUBTOTAL(109,القروض[الفرق])","v":{"v":0,"d":"ر.س.‏ 0"}}]
[null,"غير ذلك",null,null,{"$f":"وسائل_النقل[المتوقعة\nالتكلفة]-وسائل_النقل[الفعلية\nالتكلفة]","v":{"v":0,"d":"ر.س.‏ 0"}}]
[null,"الإجمالي",{"$f":"SUBTOTAL(109,وسائل_النقل[المتوقعة\nالتكلفة])","v":{"v":0,"d":"ر.س.‏ 0"}},{"$f":"SUBTOTAL(109,وسائل_النقل[الفعلية\nالتكلفة])","v":{"v":0,"d":"ر.س.‏ 0"}},{"$f":"SUBTOTAL(109,وسائل_النقل[الفرق])","v":{"v":0,"d":"ر.س.‏ 0"}},null,"الترفيه","المتوقعة\nالتكلفة","الفعلية\nالتكلفة","الفرق"]
[{"$nulls":6},"فيديو/DVD",null,null,{"$f":"الترفيه[المتوقعة\nالتكلفة]-الترفيه[الفعلية\nالتكلفة]","v":{"v":0,"d":"ر.س.‏ 0"}}]
[null,"التأمين","المتوقعة\nالتكلفة","الفعلية\nالتكلفة","الفرق",null,"الأقراص المضغوطة",null,null,{"$f":"الترفيه[المتوقعة\nالتكلفة]-الترفيه[الفعلية\nالتكلفة]","v":{"v":0,"d":"ر.س.‏ 0"}}]
[null,"المنزل",null,null,{"$f":"التأمين[المتوقعة\nالتكلفة]-التأمين[الفعلية\nالتكلفة]","v":{"v":0,"d":"ر.س.‏ 0"}},null,"الأفلام",null,null,{"$f":"الترفيه[المتوقعة\nالتكلفة]-الترفيه[الفعلية\nالتكلفة]","v":{"v":0,"d":"ر.س.‏ 0"}}]
[null,"صحي",null,null,{"$f":"التأمين[المتوقعة\nالتكلفة]-التأمين[الفعلية\nالتكلفة]","v":{"v":0,"d":"ر.س.‏ 0"}},null,"الحفلات الموسيقية",null,null,{"$f":"الترفيه[المتوقعة\nالتكلفة]-الترفيه[الفعلية\nالتكلفة]","v":{"v":0,"d":"ر.س.‏ 0"}}]
[null,"حياة",null,null,{"$f":"التأمين[المتوقعة\nالتكلفة]-التأمين[الفعلية\nالتكلفة]","v":{"v":0,"d":"ر.س.‏ 0"}},null,"الأحداث الرياضية",null,null,{"$f":"الترفيه[المتوقعة\nالتكلفة]-الترفيه[الفعلية\nالتكلفة]","v":{"v":0,"d":"ر.س.‏ 0"}}]
[null,"غير ذلك",null,null,{"$f":"التأمين[المتوقعة\nالتكلفة]-التأمين[الفعلية\nالتكلفة]","v":{"v":0,"d":"ر.س.‏ 0"}},null,"المسرح المباشر",null,null,{"$f":"الترفيه[المتوقعة\nالتكلفة]-الترفيه[الفعلية\nالتكلفة]","v":{"v":0,"d":"ر.س.‏ 0"}}]
[null,"الإجمالي",{"$f":"SUBTOTAL(109,التأمين[المتوقعة\nالتكلفة])","v":{"v":0,"d":"ر.س.‏ 0"}},{"$f":"SUBTOTAL(109,التأمين[الفعلية\nالتكلفة])","v":{"v":0,"d":"ر.س.‏ 0"}},{"$f":"SUBTOTAL(109,التأمين[الفرق])","v":{"v":0,"d":"ر.س.‏ 0"}},null,"غير ذلك",null,null,{"$f":"الترفيه[المتوقعة\nالتكلفة]-الترفيه[الفعلية\nالتكلفة]","v":{"v":0,"d":"ر.س.‏ 0"}}]
[{"$nulls":6},"الإجمالي",{"$f":"SUBTOTAL(109,الترفيه[المتوقعة\nالتكلفة])","v":{"v":0,"d":"ر.س.‏ 0"}},{"$f":"SUBTOTAL(109,الترفيه[الفعلية\nالتكلفة])","v":{"v":0,"d":"ر.س.‏ 0"}},{"$f":"SUBTOTAL(109,الترفيه[الفرق])","v":{"v":0,"d":"ر.س.‏ 0"}}]
[null,"الطعام","المتوقعة\nالتكلفة","الفعلية\nالتكلفة","الفرق"]
[null,"البقالة",null,null,{"$f":"الطعام[المتوقعة\nالتكلفة]-الطعام[الفعلية\nالتكلفة]","v":{"v":0,"d":"ر.س.‏ 0"}},null,"الضرائب","المتوقعة \nالتكلفة","الفعلية \nالتكلفة","الفرق"]
[null,"الطعام خارج المنزل",null,null,{"$f":"الطعام[المتوقعة\nالتكلفة]-الطعام[الفعلية\nالتكلفة]","v":{"v":0,"d":"ر.س.‏ 0"}},null,"الاتحادية",null,null,{"$f":"الضرائب[المتوقعة \nالتكلفة]-الضرائب[الفعلية \nالتكلفة]","v":{"v":0,"d":"ر.س.‏ 0"}}]
[null,"غير ذلك",null,null,{"$f":"الطعام[المتوقعة\nالتكلفة]-الطعام[الفعلية\nالتكلفة]","v":{"v":0,"d":"ر.س.‏ 0"}},null,"الولاية",null,null,{"$f":"الضرائب[المتوقعة \nالتكلفة]-الضرائب[الفعلية \nالتكلفة]","v":{"v":0,"d":"ر.س.‏ 0"}}]
[null,"الإجمالي",{"$f":"SUBTOTAL(109,الطعام[المتوقعة\nالتكلفة])","v":{"v":0,"d":"ر.س.‏ 0"}},{"$f":"SUBTOTAL(109,الطعام[الفعلية\nالتكلفة])","v":{"v":0,"d":"ر.س.‏ 0"}},{"$f":"SUBTOTAL(109,الطعام[الفرق])","v":{"v":0,"d":"ر.س.‏ 0"}},null,"المحلية",null,null,{"$f":"الضرائب[المتوقعة \nالتكلفة]-الضرائب[الفعلية \nالتكلفة]","v":{"v":0,"d":"ر.س.‏ 0"}}]
[{"$nulls":6},"غير ذلك",null,null,{"$f":"الضرائب[المتوقعة \nالتكلفة]-الضرائب[الفعلية \nالتكلفة]","v":{"v":0,"d":"ر.س.‏ 0"}}]
[null,"الأطفال","المتوقعة\nالتكلفة","الفعلية\nالتكلفة","الفرق",null,"الإجمالي",{"$f":"SUBTOTAL(109,الضرائب[المتوقعة \nالتكلفة])","v":{"v":0,"d":"ر.س.‏ 0"}},{"$f":"SUBTOTAL(109,الضرائب[الفعلية \nالتكلفة])","v":{"v":0,"d":"ر.س.‏ 0"}},{"$f":"SUBTOTAL(109,الضرائب[الفرق])","v":{"v":0,"d":"ر.س.‏ 0"}}]
[null,"المتطلبات الطبية",null,null,{"$f":"الأطفال[المتوقعة\nالتكلفة]-الأطفال[الفعلية\nالتكلفة]","v":{"v":0,"d":"ر.س.‏ 0"}}]
[null,"الملابس",null,null,{"$f":"الأطفال[المتوقعة\nالتكلفة]-الأطفال[الفعلية\nالتكلفة]","v":{"v":0,"d":"ر.س.‏ 0"}},null,"الرعاية الشخصية","المتوقعة\nالتكلفة","الفعلية\nالتكلفة","الفرق"]
[null,"الرسوم الدراسية",null,null,{"$f":"الأطفال[المتوقعة\nالتكلفة]-الأطفال[الفعلية\nالتكلفة]","v":{"v":0,"d":"ر.س.‏ 0"}},null,"المتطلبات الطبية",null,null,{"$f":"الرعاية_الشخصية[المتوقعة\nالتكلفة]-الرعاية_الشخصية[الفعلية\nالتكلفة]","v":{"v":0,"d":"ر.س.‏ 0"}}]
[null,"مستلزمات المدرسة",null,null,{"$f":"الأطفال[المتوقعة\nالتكلفة]-الأطفال[الفعلية\nالتكلفة]","v":{"v":0,"d":"ر.س.‏ 0"}},null,"الشعر/الأظافر",null,null,{"$f":"الرعاية_الشخصية[المتوقعة\nالتكلفة]-الرعاية_الشخصية[الفعلية\nالتكلفة]","v":{"v":0,"d":"ر.س.‏ 0"}}]
[null,"مستحقات المؤسسة أو رسومها",null,null,{"$f":"الأطفال[المتوقعة\nالتكلفة]-الأطفال[الفعلية\nالتكلفة]","v":{"v":0,"d":"ر.س.‏ 0"}},null,"الملابس",null,null,{"$f":"الرعاية_الشخصية[المتوقعة\nالتكلفة]-الرعاية_الشخصية[الفعلية\nالتكلفة]","v":{"v":0,"d":"ر.س.‏ 0"}}]
[null,"مبلغ الغداء",null,null,{"$f":"الأطفال[المتوقعة\nالتكلفة]-الأطفال[الفعلية\nالتكلفة]","v":{"v":0,"d":"ر.س.‏ 0"}},null,"التنظيف الجاف",null,null,{"$f":"الرعاية_الشخصية[المتوقعة\nالتكلفة]-الرعاية_الشخصية[الفعلية\nالتكلفة]","v":{"v":0,"d":"ر.س.‏ 0"}}]
[null,"رعاية الأطفال",null,null,{"$f":"الأطفال[المتوقعة\nالتكلفة]-الأطفال[الفعلية\nالتكلفة]","v":{"v":0,"d":"ر.س.‏ 0"}},null,"النادي الصحي",null,null,{"$f":"الرعاية_الشخصية[المتوقعة\nالتكلفة]-الرعاية_الشخصية[الفعلية\nالتكلفة]","v":{"v":0,"d":"ر.س.‏ 0"}}]
[null,"الدمى/الألعاب",null,null,{"$f":"الأطفال[المتوقعة\nالتكلفة]-الأطفال[الفعلية\nالتكلفة]","v":{"v":0,"d":"ر.س.‏ 0"}},null,"مستحقات المؤسسة/رسوم",null,null,{"$f":"الرعاية_الشخصية[المتوقعة\nالتكلفة]-الرعاية_الشخصية[الفعلية\nالتكلفة]","v":{"v":0,"d":"ر.س.‏ 0"}}]
[null,"غير ذلك",null,null,{"$f":"الأطفال[المتوقعة\nالتكلفة]-الأطفال[الفعلية\nالتكلفة]","v":{"v":0,"d":"ر.س.‏ 0"}},null,"غير ذلك",null,null,{"$f":"الرعاية_الشخصية[المتوقعة\nالتكلفة]-الرعاية_الشخصية[الفعلية\nالتكلفة]","v":{"v":0,"d":"ر.س.‏ 0"}}]
[null,"الإجمالي",{"$f":"SUBTOTAL(109,الأطفال[المتوقعة\nالتكلفة])","v":{"v":0,"d":"ر.س.‏ 0"}},{"$f":"SUBTOTAL(109,الأطفال[الفعلية\nالتكلفة])","v":{"v":0,"d":"ر.س.‏ 0"}},{"$f":"SUBTOTAL(109,الأطفال[الفرق])","v":{"v":0,"d":"ر.س.‏ 0"}},null,"الإجمالي",{"$f":"SUBTOTAL(109,الرعاية_الشخصية[المتوقعة\nالتكلفة])","v":{"v":0,"d":"ر.س.‏ 0"}},{"$f":"SUBTOTAL(109,الرعاية_الشخصية[الفعلية\nالتكلفة])","v":{"v":0,"d":"ر.س.‏ 0"}},{"$f":"SUBTOTAL(109,الرعاية_الشخصية[الفرق])","v":{"v":0,"d":"ر.س.‏ 0"}}]
[]
[null,"المتطلبات القانونية","المتوقعة\nالتكلفة","الفعلية\nالتكلفة","الفرق",null,"الحيوانات الأليفة","المتوقعة\nالتكلفة","الفعلية\nالتكلفة","الفرق"]
[null,"محامي",null,null,{"$f":"المتطلبات_القانونية[المتوقعة\nالتكلفة]-المتطلبات_القانونية[الفعلية\nالتكلفة]","v":{"v":0,"d":"ر.س.‏ 0"}},null,"الطعام",null,null,{"$f":"الحيوانات_الأليفة[المتوقعة\nالتكلفة]-الحيوانات_الأليفة[الفعلية\nالتكلفة]","v":{"v":0,"d":"ر.س.‏ 0"}}]
[null,"نفقة الزوجة",null,null,{"$f":"المتطلبات_القانونية[المتوقعة\nالتكلفة]-المتطلبات_القانونية[الفعلية\nالتكلفة]","v":{"v":0,"d":"ر.س.‏ 0"}},null,"المتطلبات الطبية",null,null,{"$f":"الحيوانات_الأليفة[المتوقعة\nالتكلفة]-الحيوانات_الأليفة[الفعلية\nالتكلفة]","v":{"v":0,"d":"ر.س.‏ 0"}}]
[null,"الدفعات",null,null,{"$f":"المتطلبات_القانونية[المتوقعة\nالتكلفة]-المتطلبات_القانونية[الفعلية\nالتكلفة]","v":{"v":0,"d":"ر.س.‏ 0"}},null,"التدليل",null,null,{"$f":"الحيوانات_الأليفة[المتوقعة\nالتكلفة]-الحيوانات_الأليفة[الفعلية\nالتكلفة]","v":{"v":0,"d":"ر.س.‏ 0"}}]
[null,"غير ذلك",null,null,{"$f":"المتطلبات_القانونية[المتوقعة\nالتكلفة]-المتطلبات_القانونية[الفعلية\nالتكلفة]","v":{"v":0,"d":"ر.س.‏ 0"}},null,"الدمى",null,null,{"$f":"الحيوانات_الأليفة[المتوقعة\nالتكلفة]-الحيوانات_الأليفة[الفعلية\nالتكلفة]","v":{"v":0,"d":"ر.س.‏ 0"}}]
[null,"الإجمالي",{"$f":"SUBTOTAL(109,المتطلبات_القانونية[المتوقعة\nالتكلفة])","v":{"v":0,"d":"ر.س.‏ 0"}},{"$f":"SUBTOTAL(109,المتطلبات_القانونية[الفعلية\nالتكلفة])","v":{"v":0,"d":"ر.س.‏ 0"}},{"$f":"SUBTOTAL(109,المتطلبات_القانونية[الفرق])","v":{"v":0,"d":"ر.س.‏ 0"}},null,"غير ذلك",null,null,{"$f":"الحيوانات_الأليفة[المتوقعة\nالتكلفة]-الحيوانات_الأليفة[الفعلية\nالتكلفة]","v":{"v":0,"d":"ر.س.‏ 0"}}]
[{"$nulls":6},"الإجمالي",{"$f":"SUBTOTAL(109,الحيوانات_الأليفة[المتوقعة\nالتكلفة])","v":{"v":0,"d":"ر.س.‏ 0"}},{"$f":"SUBTOTAL(109,الحيوانات_الأليفة[الفعلية\nالتكلفة])","v":{"v":0,"d":"ر.س.‏ 0"}},{"$f":"SUBTOTAL(109,الحيوانات_الأليفة[الفرق])","v":{"v":0,"d":"ر.س.‏ 0"}}]
[null,"المدخرات/الاستثمارات","المتوقعة\nالتكلفة","الفعلية\nالتكلفة","الفرق"]
[null,"حساب التقاعد",null,null,{"$f":"المدخرات[المتوقعة\nالتكلفة]-المدخرات[الفعلية\nالتكلفة]","v":{"v":0,"d":"ر.س.‏ 0"}},null,"الهدايا والتبرعات","المتوقعة\nالتكلفة","الفعلية\nالتكلفة","الفرق"]
[null,"حساب الاستثمار",null,null,{"$f":"المدخرات[المتوقعة\nالتكلفة]-المدخرات[الفعلية\nالتكلفة]","v":{"v":0,"d":"ر.س.‏ 0"}},null,"عمل خيري 1",null,null,{"$f":"الهدايا[المتوقعة\nالتكلفة]-الهدايا[الفعلية\nالتكلفة]","v":{"v":0,"d":"ر.س.‏ 0"}}]
[null,"الكلية",null,null,{"$f":"المدخرات[المتوقعة\nالتكلفة]-المدخرات[الفعلية\nالتكلفة]","v":{"v":0,"d":"ر.س.‏ 0"}},null,"عمل خيري 2",null,null,{"$f":"الهدايا[المتوقعة\nالتكلفة]-الهدايا[الفعلية\nالتكلفة]","v":{"v":0,"d":"ر.س.‏ 0"}}]
[null,"غير ذلك",null,null,{"$f":"المدخرات[المتوقعة\nالتكلفة]-المدخرات[الفعلية\nالتكلفة]","v":{"v":0,"d":"ر.س.‏ 0"}},null,"عمل خيري 3",null,null,{"$f":"الهدايا[المتوقعة\nالتكلفة]-الهدايا[الفعلية\nالتكلفة]","v":{"v":0,"d":"ر.س.‏ 0"}}]
[null,"الإجمالي",{"$f":"SUBTOTAL(109,المدخرات[المتوقعة\nالتكلفة])","v":{"v":0,"d":"ر.س.‏ 0"}},{"$f":"SUBTOTAL(109,المدخرات[الفعلية\nالتكلفة])","v":{"v":0,"d":"ر.س.‏ 0"}},{"$f":"SUBTOTAL(109,المدخرات[الفرق])","v":{"v":0,"d":"ر.س.‏ 0"}},null,"الإجمالي",{"$f":"SUBTOTAL(109,الهدايا[المتوقعة\nالتكلفة])","v":{"v":0,"d":"ر.س.‏ 0"}},{"$f":"SUBTOTAL(109,الهدايا[الفعلية\nالتكلفة])","v":{"v":0,"d":"ر.س.‏ 0"}},{"$f":"SUBTOTAL(109,الهدايا[الفرق])","v":{"v":0,"d":"ر.س.‏ 0"}}]